fUST/lending_fUST_20260417
["ID","MTS","AMOUNT","RATE_DAILY","PERIOD"]
[420626234,1776366648523,-1065.96,8.219e-05,2]
[420626235,1776366648532,-3865.43,8.219e-05,2]
[420626236,1776366648541,-777.94,8.219e-05,2]
[420626237,1776366648551,-500.0,8.219e-05,2]
[420626238,1776366648560,-500.0,8.219e-05,2]
[420626239,1776366648569,-500.0,8.219e-05,2]
[420626240,1776366648578,-2396.08,8.219e-05,2]
[420626241,1776366648587,-155.82408453,8.219e-05,2]
[420626242,1776366648596,-1223.99,8.219e-05,2]
[420626243,1776366648605,-1344.91,8.219e-05,2]
[420626244,1776366648614,-6145.52,8.219e-05,2]
[420626245,1776366648624,-528.12,8.219e-05,2]
[420626246,1776366648634,-500.0,8.219e-05,2]
[420626247,1776366648643,-500.0,8.219e-05,2]
[420626248,1776366648652,-1040.5,8.219e-05,2]
[420626249,1776366648661,-985.82,8.219e-05,2]
[420626250,1776366648670,-1616.01,8.219e-05,2]
[420626251,1776366648680,-3325.08,8.219e-05,2]
[420626252,1776366648689,-500.0,8.219e-05,2]
[420626253,1776366648701,-500.0,8.219e-05,2]
[420626254,1776366648711,-500.0,8.219e-05,2]
[420626255,1776366648719,-500.0,8.219e-05,2]
[420626256,1776366648729,-500.0,8.219e-05,2]
[420626257,1776366648738,-1543.78,8.219e-05,2]
[420626258,1776366648747,-1336.61,8.219e-05,2]
[420626259,1776366648756,-500.0,8.219e-05,2]
[420626260,1776366648766,-820.45,8.219e-05,2]
[420626261,1776366648774,-186.50458988,8.219e-05,2]
[420626262,1776366648783,-500.0,8.219e-05,2]
[420626263,1776366648792,-945.82,8.219e-05,2]
[420626264,1776366648801,-28841.26,8.219e-05,2]
[420626265,1776366648811,-6146.37,8.219e-05,2]
[420626266,1776366648820,-500.0,8.219e-05,2]
[420626267,1776366648829,-515.39,8.219e-05,2]
[420626268,1776366648838,-500.0,8.219e-05,2]
[420626269,1776366648847,-8047.29,8.219e-05,2]
[420626270,1776366648856,-2619.21,8.219e-05,2]
[420626271,1776366648865,-526.37,8.219e-05,2]
[420626272,1776366648875,-8479.3,8.219e-05,2]
[420626273,1776366648884,-506.79481889,8.219e-05,2]
[420626274,1776366648893,-844.12,8.219e-05,2]
[420626275,1776366648902,-14728.92,8.219e-05,2]
[420626276,1776366648911,-8100.18,8.219e-05,2]
[420626277,1776366648920,-730.88,8.219e-05,2]
[420626278,1776366648929,-778.83,8.219e-05,2]
[420626279,1776366648938,-500.0,8.219e-05,2]
[420626280,1776366648947,-10206.22,8.219e-05,2]
[420626281,1776366648956,-9087.81,8.219e-05,2]
[420626282,1776366648965,-341.88015481,8.219e-05,2]
[420626283,1776366648975,-500.0,8.219e-05,2]
[420626284,1776366648984,-8307.4,8.219e-05,2]
[420626285,1776366648993,-1162.11,8.219e-05,2]
[420626286,1776366649002,-500.0,8.219e-05,2]
[420626287,1776366649012,-500.0,8.219e-05,2]
[420626288,1776366649021,-1140.8,8.219e-05,2]
[420626289,1776366649030,-1817.85,8.219e-05,2]
[420626290,1776366649039,-500.0,8.219e-05,2]
[420626291,1776366649048,-748.64,8.219e-05,2]
[420626292,1776366649057,-500.0,8.219e-05,2]
[420626293,1776366649066,-500.0,8.219e-05,2]
[420626294,1776366649075,-1459.11,8.219e-05,2]
[420626295,1776366649085,-500.0,8.219e-05,2]
[420626296,1776366649094,-300.0,8.288e-05,2]
[420626297,1776366649103,-300.0,8.288e-05,2]
[420626298,1776366649113,-300.0,8.288e-05,2]
[420626299,1776366649124,-300.0,8.288e-05,2]
[420626300,1776366649133,-300.0,8.288e-05,2]
[420626301,1776366649143,-5948.0,8.4e-05,2]
[420626302,1776366649151,-500.0,8.493e-05,2]
[420626303,1776366649161,-500.0,8.493e-05,2]
[420626304,1776366649171,-1475.16,8.493e-05,2]
[420626305,1776366649181,-512.03,8.493e-05,2]
[420626306,1776366649190,-523.28,8.493e-05,2]
[420626307,1776366649199,-208.08722863,8.493e-05,2]
[420626308,1776366649208,-2524.83,8.493e-05,2]
[420626309,1776366649218,-658.68,8.493e-05,2]
[420626310,1776366649228,-500.0,8.493e-05,2]
[420626311,1776366649238,-500.0,8.493e-05,2]
[420626312,1776366649247,-1498.94,8.493e-05,2]
[420626313,1776366649257,-500.0,8.493e-05,2]
[420626314,1776366649268,-637.45,8.493e-05,2]
[420626315,1776366649277,-721.4,8.493e-05,2]
[420626316,1776366649286,-500.0,8.493e-05,2]
[420626317,1776366649295,-740.63,8.493e-05,2]
[420626318,1776366649304,-500.0,8.493e-05,2]
[420626319,1776366649313,-509.0,8.493e-05,2]
[420626320,1776366649323,-500.0,8.493e-05,2]
[420626321,1776366649332,-664.3446,8.493e-05,2]
[420626322,1776366649341,-513.95,8.493e-05,2]
[420626323,1776366649350,-880.22,8.493e-05,2]
[420626324,1776366649360,-500.0,8.493e-05,2]
[420626325,1776366649369,-500.0,8.493e-05,2]
[420626326,1776366649378,-500.0,8.493e-05,2]
[420626327,1776366649390,-526.92,8.493e-05,2]
[420626328,1776366649400,-533.28,8.493e-05,2]
[420626329,1776366649411,-500.0,8.493e-05,2]
[420626330,1776366649420,-500.0,8.493e-05,2]
[420626331,1776366649429,-542.41,8.493e-05,2]
[420626332,1776366649438,-500.0,8.493e-05,2]
[420626333,1776366649447,-1133.81,8.493e-05,2]
[420626334,1776366649457,-640.07,8.493e-05,2]
[420626335,1776366649467,-500.0,8.493e-05,2]
[420626336,1776366649477,-1169.97,8.493e-05,2]
[420626337,1776366649487,-500.0,8.493e-05,2]
[420626338,1776366649497,-500.0,8.493e-05,2]
[420626339,1776366649508,-952.15,8.493e-05,2]
[420626340,1776366649518,-1921.89,8.493e-05,2]
[420626341,1776366649527,-534.67280845,8.493e-05,2]
[420626342,1776366649538,-500.0,8.493e-05,2]
[420626343,1776366649548,-2191.94,8.493e-05,2]
[420626344,1776366649558,-763.1,8.493e-05,2]
[420626345,1776366649567,-500.0,8.493e-05,2]
[420626346,1776366649578,-500.0,8.493e-05,2]
[420626347,1776366649587,-500.0,8.493e-05,2]
[420626348,1776366649597,-500.0,8.493e-05,2]
[420626349,1776366649607,-500.0,8.493e-05,2]
[420626350,1776366649616,-217.50084253,8.493e-05,2]
[420626351,1776366649624,-500.0,8.493e-05,2]
[420626352,1776366649634,-500.0,8.493e-05,2]
[420626353,1776366649643,-500.0,8.493e-05,2]
[420626354,1776366649652,-682.53,8.493e-05,2]
[420626355,1776366649662,-500.0,8.493e-05,2]
[420626356,1776366649673,-500.0,8.493e-05,2]
[420626357,1776366649683,-500.0,8.493e-05,2]
[420626358,1776366649692,-500.0,8.493e-05,2]
[420626359,1776366649701,-500.0,8.493e-05,2]
[420626360,1776366649710,-1784.59,8.493e-05,2]
[420626361,1776366649719,-500.0,8.493e-05,2]
[420626362,1776366649728,-500.0,8.493e-05,2]
[420626363,1776366649738,-500.0,8.493e-05,2]
[420626364,1776366649747,-500.0,8.493e-05,2]
[420626365,1776366649757,-986.15,8.493e-05,2]
[420626366,1776366649767,-500.0,8.493e-05,2]
[420626367,1776366649776,-500.0,8.493e-05,2]
[420626368,1776366649785,-1151.22,8.493e-05,2]
[420626369,1776366649794,-500.0,8.493e-05,2]
[420626370,1776366649803,-500.0,8.493e-05,2]
[420626371,1776366649812,-500.0,8.493e-05,2]
[420626372,1776366649821,-500.0,8.493e-05,2]
[420626373,1776366649830,-500.0,8.493e-05,2]
[420626374,1776366649838,-533.91,8.493e-05,2]
[420626375,1776366649847,-1000.0,8.493e-05,2]
[420626376,1776366649856,-500.0,8.493e-05,2]
[420626377,1776366649865,-500.0,8.493e-05,2]
[420626378,1776366649874,-500.0,8.493e-05,2]
[420626379,1776366649883,-500.0,8.493e-05,2]
[420626380,1776366649892,-588.02548949,8.493e-05,2]
[420626381,1776366649901,-500.0,8.493e-05,2]
[420626382,1776366649910,-500.0,8.493e-05,2]
[420626383,1776366649920,-500.0,8.493e-05,2]
[420626384,1776366649929,-6287.9,8.493e-05,2]
[420626385,1776366649938,-2032.0,8.493e-05,2]
[420626386,1776366649947,-500.0,8.493e-05,2]
[420626387,1776366649956,-1777.32,8.493e-05,2]
[420626388,1776366649965,-500.0,8.493e-05,2]
[420626389,1776366649974,-876.03,8.493e-05,2]
[420626390,1776366649983,-3588.69,8.493e-05,2]
[420626391,1776366649992,-549.82,8.493e-05,2]
[420626392,1776366650001,-1873.57,8.493e-05,2]
[420626393,1776366650010,-500.0,8.493e-05,2]
[420626394,1776366650019,-500.0,8.493e-05,2]
[420626395,1776366650028,-1192.47,8.493e-05,2]
[420626396,1776366650037,-500.0,8.493e-05,2]
[420626397,1776366650045,-500.0,8.493e-05,2]
[420626398,1776366650054,-922.72,8.493e-05,2]
[420626399,1776366650063,-3825.65,8.493e-05,2]
[420626400,1776366650073,-688.49,8.493e-05,2]
[420626401,1776366650083,-500.0,8.493e-05,2]
[420626402,1776366650092,-500.0,8.493e-05,2]
[420626403,1776366650101,-500.0,8.493e-05,2]
[420626404,1776366650110,-5857.13,8.493e-05,2]
[420626405,1776366650120,-1220.32,8.493e-05,2]
[420626406,1776366650129,-500.0,8.493e-05,2]
[420626407,1776366650139,-4132.22,8.493e-05,2]
[420626408,1776366650147,-8375.52,8.493e-05,2]
[420626409,1776366650157,-500.0,8.493e-05,2]
[420626410,1776366650169,-1321.12,8.493e-05,2]
[420626411,1776366650179,-2478.06,8.493e-05,2]
[420626412,1776366650188,-7931.66,8.493e-05,2]
[420626413,1776366650197,-220.48833215,8.493e-05,2]
[420626414,1776366650206,-502.27,8.493e-05,2]
[420626415,1776366650216,-4340.93,8.493e-05,2]
[420626416,1776366650225,-505.69,8.493e-05,2]
[420626417,1776366650234,-500.0,8.493e-05,2]
[420626418,1776366650243,-621.25,8.493e-05,2]
[420626419,1776366650252,-1430.14,8.493e-05,2]
[420626420,1776366650261,-3420.69,8.493e-05,2]
[420626421,1776366650271,-850.64,8.493e-05,2]
[420626422,1776366650280,-500.0,8.493e-05,2]
[420626423,1776366650289,-500.0,8.493e-05,2]
[420626424,1776366650298,-1065.96,8.493e-05,2]
[420626425,1776366650306,-3865.43,8.493e-05,2]
[420626426,1776366650316,-777.94,8.493e-05,2]
[420626427,1776366650325,-500.0,8.493e-05,2]
[420626428,1776366650334,-500.0,8.493e-05,2]
[420626429,1776366650343,-500.0,8.493e-05,2]
[420626430,1776366650352,-2396.08,8.493e-05,2]
[420626431,1776366650361,-1223.99,8.493e-05,2]
[420626432,1776366650371,-1344.91,8.493e-05,2]
[420626433,1776366650380,-6145.52,8.493e-05,2]
[420626434,1776366650390,-528.12,8.493e-05,2]
[420626435,1776366650400,-500.0,8.493e-05,2]
[420626436,1776366650410,-500.0,8.493e-05,2]
[420626437,1776366650419,-1040.5,8.493e-05,2]
[420626438,1776366650428,-985.82,8.493e-05,2]
[420626439,1776366650437,-1616.01,8.493e-05,2]
[420626440,1776366650447,-3325.08,8.493e-05,2]
[420626441,1776366650457,-500.0,8.493e-05,2]
[420626442,1776366650466,-500.0,8.493e-05,2]
[420626443,1776366650476,-500.0,8.493e-05,2]
[420626444,1776366650486,-500.0,8.493e-05,2]
[420626445,1776366650495,-500.0,8.493e-05,2]
[420626446,1776366650503,-1543.78,8.493e-05,2]
[420626447,1776366650513,-1336.61,8.493e-05,2]
[420626448,1776366650522,-820.45,8.493e-05,2]
[420626449,1776366650531,-500.0,8.493e-05,2]
[420626450,1776366650541,-945.82,8.493e-05,2]
[420626451,1776366650552,-28841.26,8.493e-05,2]
[420626452,1776366650562,-6146.37,8.493e-05,2]
[420626453,1776366650572,-500.0,8.493e-05,2]
[420626454,1776366650581,-515.39,8.493e-05,2]
[420626455,1776366650593,-500.0,8.493e-05,2]
[420626456,1776366650603,-8047.29,8.493e-05,2]
[420626457,1776366650614,-2619.21,8.493e-05,2]
[420626458,1776366650624,-526.37,8.493e-05,2]
[420626459,1776366650633,-8479.3,8.493e-05,2]
[420626460,1776366650644,-844.12,8.493e-05,2]
[420626461,1776366650655,-14728.92,8.493e-05,2]
[420626462,1776366650665,-8100.18,8.493e-05,2]
[420626463,1776366650674,-730.88,8.493e-05,2]
[420626464,1776366650684,-778.83,8.493e-05,2]
[420626465,1776366650693,-500.0,8.493e-05,2]
[420626466,1776366650703,-10206.22,8.493e-05,2]
[420626467,1776366650713,-9087.81,8.493e-05,2]
[420626468,1776366650722,-500.0,8.493e-05,2]
[420626469,1776366650732,-8307.4,8.493e-05,2]
[420626470,1776366650741,-1162.11,8.493e-05,2]
[420626471,1776366650752,-500.0,8.493e-05,2]
[420626472,1776366650762,-500.0,8.493e-05,2]
[420626473,1776366650771,-1140.8,8.493e-05,2]
[420626474,1776366650781,-1817.85,8.493e-05,2]
[420626475,1776366650792,-500.0,8.493e-05,2]
[420626476,1776366650801,-748.64,8.493e-05,2]
[420626477,1776366650811,-500.0,8.493e-05,2]
[420626478,1776366650822,-500.0,8.493e-05,2]
[420626479,1776366650832,-1459.11,8.493e-05,2]
[420626480,1776366650841,-500.0,8.493e-05,2]
[420626481,1776366650851,-152.0,8.495e-05,7]
[420626482,1776366650861,-521.88877682,8.555e-05,2]
[420626483,1776366650872,-160.0,8.583e-05,2]
[420626484,1776366650882,-160.0,8.583e-05,2]
[420626485,1776366650892,-778.7731151,8.646e-05,2]
[420626486,1776366650901,-455.6765822,8.696e-05,2]
[420626487,1776366650910,-2230.315306,8.762e-05,2]
[420626488,1776366650920,-500.0,8.767e-05,2]
[420626489,1776366650931,-1475.16,8.767e-05,2]
[420626490,1776366650943,-512.03,8.767e-05,2]
[420626491,1776366650952,-523.28,8.767e-05,2]
[420626492,1776366650961,-2524.83,8.767e-05,2]
[420626493,1776366650972,-658.68,8.767e-05,2]
[420626494,1776366650981,-176.80287356,8.767e-05,2]
[420626495,1776366650993,-500.0,8.767e-05,2]
[420626496,1776366651156,-1498.94,8.767e-05,2]
[420626497,1776366651167,-500.0,8.767e-05,2]
[420626498,1776366651177,-637.45,8.767e-05,2]
[420626499,1776366651186,-721.4,8.767e-05,2]
[420626500,1776366651196,-500.0,8.767e-05,2]
[420626501,1776366651205,-740.63,8.767e-05,2]
[420626502,1776366651214,-500.0,8.767e-05,2]
[420626503,1776366651224,-509.0,8.767e-05,2]
[420626504,1776366651233,-193.16683995,8.767e-05,2]
[420626505,1776366651243,-513.95,8.767e-05,2]
[420626506,1776366651252,-880.22,8.767e-05,2]
[420626507,1776366651262,-500.0,8.767e-05,2]
[420626508,1776366651271,-500.0,8.767e-05,2]
[420626509,1776366651280,-500.0,8.767e-05,2]
[420626510,1776366651289,-526.92,8.767e-05,2]
[420626511,1776366651298,-533.28,8.767e-05,2]
[420626512,1776366651307,-500.0,8.767e-05,2]
[420626513,1776366651316,-500.0,8.767e-05,2]
[420626514,1776366651325,-542.41,8.767e-05,2]
[420626515,1776366651335,-500.0,8.767e-05,2]
[420626516,1776366651344,-640.07,8.767e-05,2]
[420626517,1776366651353,-1133.81,8.767e-05,2]
[420626518,1776366651363,-500.0,8.767e-05,2]
[420626519,1776366651372,-1169.97,8.767e-05,2]
[420626520,1776366651382,-500.0,8.767e-05,2]
[420626521,1776366651391,-500.0,8.767e-05,2]
[420626522,1776366651401,-170.65799776,8.767e-05,2]
[420626526,1776367494179,339.55,0.000246,120]
[420626540,1776367832156,-5000.0,7.018e-05,2]
[420626541,1776367832166,-2564.46903667,7.089e-05,2]
[420626542,1776367832179,-352.83162939,7.253e-05,2]
[420626543,1776367832188,-300.0,7.309e-05,10]
[420626544,1776367832198,-209.10042155,7.358e-05,2]
[420626545,1776367832207,-220.149657,7.571e-05,2]
[420626546,1776367832216,-172.92572073,7.585e-05,2]
[420626547,1776367832225,-300.0,7.749e-05,2]
[420626548,1776367832234,-300.0,7.749e-05,2]
[420626549,1776367832243,-300.0,7.75e-05,2]
[420626550,1776367832252,-300.0,7.75e-05,2]
[420626551,1776367832263,-300.0,7.75e-05,2]
[420626552,1776367832272,-300.0,7.75e-05,2]
[420626553,1776367832281,-300.0,7.75e-05,2]
[420626554,1776367832291,-300.0,7.75e-05,2]
[420626555,1776367832301,-300.0,7.75e-05,2]
[420626556,1776367832310,-300.0,7.75e-05,2]
[420626557,1776367832319,-300.0,7.75e-05,2]
[420626558,1776367832328,-300.0,7.75e-05,2]
[420626559,1776367832338,-300.0,7.75e-05,2]
[420626560,1776367832347,-300.0,7.75e-05,2]
[420626561,1776367832356,-300.0,7.75e-05,2]
[420626562,1776367832366,-300.0,7.75e-05,2]
[420626563,1776367832375,-300.0,7.75e-05,2]
[420626564,1776367832385,-217.90670372,7.75e-05,2]
[420626565,1776367832395,-220.149657,7.89e-05,2]
[420626566,1776367832404,-600.0,7.904e-05,2]
[420626567,1776367832414,-16901.71077089,8.019e-05,2]
[420626568,1776367832423,-43139.75640311,8.019e-05,2]
[420626569,1776367832438,-323.49654197,8.019e-05,2]
[420626899,1776367846304,-250.0,8.019e-05,2]
[420626930,1776367861927,-3416.54939978,7.939e-05,2]
[420626958,1776368282368,7605.0,0.0002465,120]
[420626982,1776368943553,3039.0573418,0.00024657,120]
[420627042,1776369032435,-5000.0,6.71e-05,2]
[420627044,1776369032444,-516.0,6.778e-05,2]
[420627046,1776369032453,-355.8807174,6.779e-05,2]
[420627048,1776369032462,-3111.97736794,6.918e-05,2]
[420627050,1776369032471,-284.0,7.717e-05,2]
[420627052,1776369032481,-287.0,7.717e-05,2]
[420627054,1776369032491,-500.0,7.718e-05,2]
[420627056,1776369032501,-175.97178591,7.718e-05,2]
[420627058,1776369032511,-500.0,7.718e-05,2]
[420627060,1776369032520,-138.3897257,7.718e-05,2]
[420627066,1776369032565,-361.6102743,7.718e-05,2]
[420627069,1776369032575,-292.11300142,7.718e-05,2]
[420627327,1776369047150,-207.88699858,7.718e-05,2]
[420627328,1776369047160,-500.0,7.718e-05,2]
[420627330,1776369047169,-107.21975779,7.718e-05,2]
[420627341,1776369047266,-392.78024221,7.718e-05,2]
[420627342,1776369047276,-12250.50620591,7.719e-05,2]
[420627343,1776369047287,-40414.08356719,7.719e-05,2]
[420627344,1776369047324,-20189.08937966,7.719e-05,2]
[420627357,1776369047608,-21272.84364785,7.719e-05,2]
[420627358,1776369047617,-300.0,7.739e-05,2]
[420627359,1776369047627,-500.0,7.817e-05,2]
[420627360,1776369047636,-500.0,7.817e-05,2]
[420627361,1776369047645,-500.0,7.817e-05,2]
[420627362,1776369047655,-170.26738888,7.817e-05,2]
[420627363,1776369047663,-500.0,7.817e-05,2]
[420627364,1776369047673,-500.0,7.817e-05,2]
[420627365,1776369047682,-500.0,7.817e-05,2]
[420627366,1776369047693,-500.0,7.817e-05,2]
[420627367,1776369047702,-500.0,7.817e-05,2]
[420627368,1776369047712,-500.0,7.817e-05,2]
[420627369,1776369047722,-500.0,7.817e-05,2]
[420627370,1776369047733,-500.0,7.817e-05,2]
[420627371,1776369047745,-335.99561402,7.817e-05,2]
[420627372,1776369047755,-500.0,7.817e-05,2]
[420627373,1776369047766,-500.0,7.817e-05,2]
[420627374,1776369047775,-16180.27224788,7.819e-05,2]
[420627395,1776369662540,-1226.2682326,7.393e-05,2]
[420627396,1776369662563,-3773.7317674,7.393e-05,2]
[420627397,1776369691786,-1226.2682326,7.468e-05,2]
[420627459,1776370232649,-1003.44975964,6.993e-05,2]
[420627461,1776370232659,-519.0,6.993e-05,2]
[420627463,1776370232668,-364.74668887,7.029e-05,2]
[420627464,1776370232677,-1200.0,7.063e-05,2]
[420627466,1776370232686,-5000.0,7.064e-05,2]
[420627467,1776370232697,-242.284832,7.136e-05,2]
[420627468,1776370232706,-300.0,7.391e-05,2]
[420627469,1776370232715,-285.0,7.391e-05,2]
[420627470,1776370232724,-257.0,7.391e-05,2]
[420627471,1776370232733,-242.284832,7.436e-05,2]
[420627473,1776370232742,-500.0,7.518e-05,2]
[420627474,1776370232751,-500.0,7.518e-05,2]
[420627475,1776370232760,-500.0,7.518e-05,2]
[420627476,1776370232770,-500.0,7.518e-05,2]
[420627477,1776370232779,-500.0,7.518e-05,2]
[420627478,1776370232788,-526.59717859,7.518e-05,2]
[420627479,1776370232797,-500.0,7.518e-05,2]
[420627480,1776370232806,-374.29749039,7.518e-05,2]
[420627481,1776370232816,-500.0,7.518e-05,2]
[420627482,1776370232825,-500.0,7.518e-05,2]
[420627483,1776370232835,-500.0,7.518e-05,2]
[420627484,1776370232844,-500.0,7.518e-05,2]
[420627485,1776370232855,-500.0,7.518e-05,2]
[420627486,1776370232865,-500.0,7.518e-05,2]
[420627487,1776370232875,-500.0,7.518e-05,2]
[420627488,1776370232884,-500.0,7.518e-05,2]
[420627489,1776370232893,-500.0,7.518e-05,2]
[420627490,1776370232903,-500.0,7.518e-05,2]
[420627491,1776370232912,-500.0,7.518e-05,2]
[420627492,1776370232922,-500.0,7.518e-05,2]
[420627493,1776370232931,-500.0,7.518e-05,2]
[420627494,1776370232940,-500.0,7.518e-05,2]
[420627495,1776370232950,-500.0,7.518e-05,2]
[420627496,1776370232959,-500.0,7.518e-05,2]
[420627497,1776370232969,-500.0,7.518e-05,2]
[420627498,1776370232978,-500.0,7.518e-05,2]
[420627499,1776370232987,-500.0,7.518e-05,2]
[420627500,1776370232996,-500.0,7.518e-05,2]
[420627501,1776370233006,-439.09074446,7.518e-05,2]
[420627502,1776370233015,-500.0,7.518e-05,2]
[420627503,1776370233025,-500.0,7.518e-05,2]
[420627504,1776370233034,-500.0,7.518e-05,2]
[420627505,1776370233044,-500.0,7.518e-05,2]
[420627506,1776370233053,-500.0,7.518e-05,2]
[420627507,1776370233063,-500.0,7.518e-05,2]
[420627508,1776370233073,-147776.0,7.519e-05,2]
[420627509,1776370233082,-242.284832,7.736e-05,2]
[420627510,1776370233092,-2501.9545541,7.785e-05,2]
[420627511,1776370233101,-152.0,7.956e-05,7]
[420627512,1776370233111,-300.0,7.974e-05,2]
[420627513,1776370233120,-855.95792983,8e-05,2]
[420627514,1776370233130,-242.284832,8.037e-05,2]
[420627515,1776370233139,-600.0,8.178e-05,2]
[420627516,1776370233148,-2208.0,8.19e-05,2]
[420627517,1776370233158,-645.0,8.197e-05,2]
[420627518,1776370233168,-1408.0,8.197e-05,2]
[420627519,1776370233178,-441.0,8.197e-05,2]
[420627520,1776370233187,-739.0,8.197e-05,2]
[420627521,1776370233198,-184.0,8.197e-05,2]
[420627522,1776370233208,-1944.77500001,8.2e-05,2]
[420627523,1776370233218,-500.0,8.2e-05,2]
[420627524,1776370233228,-162.380719,8.214e-05,2]
[420627525,1776370233238,-155.0,8.218e-05,2]
[420627526,1776370233249,-1327.3203,8.219e-05,2]
[420627527,1776370233258,-686.26,8.219e-05,2]
[420627528,1776370233267,-1045.73,8.219e-05,2]
[420627529,1776370233277,-500.0,8.219e-05,2]
[420627530,1776370233286,-1290.77,8.219e-05,2]
[420627531,1776370233297,-500.0,8.219e-05,2]
[420627532,1776370233306,-2209.23,8.219e-05,2]
[420627533,1776370233316,-576.34,8.219e-05,2]
[420627534,1776370233326,-500.0,8.219e-05,2]
[420627535,1776370233335,-710.43,8.219e-05,2]
[420627536,1776370233344,-500.0,8.219e-05,2]
[420627537,1776370233354,-500.0,8.219e-05,2]
[420627538,1776370233363,-557.77,8.219e-05,2]
[420627539,1776370233372,-500.0,8.219e-05,2]
[420627540,1776370233382,-631.22,8.219e-05,2]
[420627541,1776370233391,-648.05,8.219e-05,2]
[420627542,1776370233400,-500.0,8.219e-05,2]
[420627543,1776370233410,-770.19,8.219e-05,2]
[420627544,1776370233420,-580.93,8.219e-05,2]
[420627545,1776370233430,-500.0,8.219e-05,2]
[420627546,1776370233439,-500.0,8.219e-05,2]
[420627547,1776370233448,-500.0,8.219e-05,2]
[420627548,1776370233458,-500.0,8.219e-05,2]
[420627549,1776370233468,-500.0,8.219e-05,2]
[420627550,1776370233478,-500.0,8.219e-05,2]
[420627551,1776370233487,-500.0,8.219e-05,2]
[420627552,1776370233496,-500.0,8.219e-05,2]
[420627553,1776370233506,-500.0,8.219e-05,2]
[420627554,1776370233515,-992.08,8.219e-05,2]
[420627555,1776370233524,-500.0,8.219e-05,2]
[420627556,1776370233533,-500.0,8.219e-05,2]
[420627557,1776370233542,-500.0,8.219e-05,2]
[420627558,1776370233551,-500.0,8.219e-05,2]
[420627559,1776370233561,-500.0,8.219e-05,2]
[420627560,1776370233570,-589.1,8.219e-05,2]
[420627561,1776370233579,-1023.72,8.219e-05,2]
[420627562,1776370233589,-500.0,8.219e-05,2]
[420627563,1776370233599,-168.39620914,8.219e-05,2]
[420627564,1776370233608,-500.0,8.219e-05,2]
[420627565,1776370233617,-828.68,8.219e-05,2]
[420627566,1776370233626,-500.0,8.219e-05,2]
[420627567,1776370233636,-500.0,8.219e-05,2]
[420627568,1776370233645,-500.0,8.219e-05,2]
[420627569,1776370233655,-500.0,8.219e-05,2]
[420627570,1776370233665,-500.0,8.219e-05,2]
[420627571,1776370233675,-500.0,8.219e-05,2]
[420627572,1776370233685,-2009.28,8.219e-05,2]
[420627573,1776370233694,-500.0,8.219e-05,2]
[420627574,1776370233703,-500.0,8.219e-05,2]
[420627575,1776370233713,-1761.73,8.219e-05,2]
[420627576,1776370233723,-500.0,8.219e-05,2]
[420627577,1776370233732,-699.51,8.219e-05,2]
[420627578,1776370233741,-500.0,8.219e-05,2]
[420627579,1776370233751,-500.0,8.219e-05,2]
[420627580,1776370233760,-903.97,8.219e-05,2]
[420627581,1776370233771,-500.0,8.219e-05,2]
[420627582,1776370233780,-500.0,8.219e-05,2]
[420627583,1776370233790,-500.0,8.219e-05,2]
[420627584,1776370233799,-625.65,8.219e-05,2]
[420627585,1776370233808,-1635.87,8.219e-05,2]
[420627586,1776370233818,-500.0,8.219e-05,2]
[420627587,1776370234006,-500.0,8.219e-05,2]
[420627588,1776370234015,-500.0,8.219e-05,2]
[420627589,1776370234025,-245.22476875,8.219e-05,2]
[420627590,1776370234034,-500.0,8.219e-05,2]
[420627591,1776370234043,-500.0,8.219e-05,2]
[420627592,1776370234052,-500.0,8.219e-05,2]
[420627593,1776370234061,-500.0,8.219e-05,2]
[420627594,1776370234070,-1055.28,8.219e-05,2]
[420627595,1776370234080,-500.0,8.219e-05,2]
[420627596,1776370234089,-500.0,8.219e-05,2]
[420627597,1776370234099,-500.0,8.219e-05,2]
[420627598,1776370234108,-500.0,8.219e-05,2]